bitfinex/quotes_BTCUSD_20250624
["timestamp","ask_amount","ask_price","bid_price","bid_amount"]
[1750743947804,0.32468322,105490.0,105480.0,0.06168047]
[1750743948237,0.32468322,105490.0,105480.0,0.0522]
[1750743948620,0.32468322,105490.0,105480.0,0.06168047]
[1750743949261,1.13022919,105490.0,105480.0,0.003]
[1750743949433,0.84768322,105490.0,105480.0,0.0522]
[1750743949947,0.56513725,105490.0,105480.0,0.0522]
[1750743950154,0.84768322,105490.0,105480.0,0.0512]
[1750743950464,0.84868322,105490.0,105480.0,0.0512]
[1750743950673,0.84868322,105490.0,105480.0,0.0492]
[1750743951005,0.85068322,105490.0,105480.0,0.0492]
[1750743951954,1.00872322,105490.0,105480.0,0.0492]
[1750743953279,0.77778322,105490.0,105480.0,0.0492]
[1750743953490,0.97782322,105490.0,105480.0,0.0492]
[1750743953699,0.99382322,105490.0,105480.0,0.0492]
[1750743954327,0.97782322,105490.0,105480.0,0.0492]
[1750743955333,0.81978322,105490.0,105480.0,0.0492]
[1750743957329,0.77778322,105490.0,105480.0,0.0492]
[1750743957540,0.81978322,105490.0,105480.0,0.0492]
[1750743958716,0.77778322,105490.0,105480.0,0.0492]
[1750743958964,0.81978322,105490.0,105480.0,0.0492]
[1750743963751,1.13382919,105490.0,105480.0,0.0492]
[1750743964421,1.13382919,105490.0,105480.0,0.04928497]
[1750743964626,1.15158772,105490.0,105480.0,0.04928497]
[1750743964919,1.16612857,105490.0,105480.0,8.497e-05]
[1750743965549,1.16612857,105490.0,105480.0,0.04928497]
[1750743965752,1.16612857,105490.0,105480.0,8.497e-05]
[1750743965956,0.6010377,105490.0,105480.0,0.04928497]
[1750743966125,0.88358367,105490.0,105480.0,0.04928497]
[1750743968122,0.86582407,105490.0,105480.0,0.04928497]
[1750743968545,0.77778322,105490.0,105480.0,0.04928497]
[1750743968744,0.77778322,105490.0,105480.0,8.497e-05]
[1750743968745,0.97774322,105490.0,105480.0,8.497e-05]
[1750743968878,0.97774322,105490.0,105480.0,0.04928497]
[1750743969701,0.7129578,105490.0,105480.0,0.04928497]
[1750743969931,0.99550377,105490.0,105480.0,0.04928497]
[1750743970251,0.97774322,105490.0,105480.0,0.04928497]
[1750743971646,0.99551418,105490.0,105480.0,0.04928497]
[1750743973716,0.99551418,105490.0,105480.0,0.08128497]
[1750743974151,0.99551418,105490.0,105480.0,0.04928497]
[1750743974993,0.99551418,105490.0,105480.0,8.497e-05]
[1750743975235,0.99551418,105490.0,105480.0,0.04928497]
[1750743976077,0.99551418,105490.0,105480.0,8.497e-05]
[1750743976283,0.99551418,105490.0,105480.0,0.04928497]
[1750743977864,0.99551418,105490.0,105480.0,8.497e-05]
[1750743978118,0.99551418,105490.0,105480.0,0.04928497]
[1750743978327,1.02691418,105490.0,105480.0,0.04928497]
[1750743978647,1.30946015,105490.0,105480.0,8.497e-05]
[1750743978811,1.324001,105490.0,105480.0,8.497e-05]
[1750743979940,1.33289418,105490.0,105480.0,0.04928497]
[1750743980826,1.01894821,105490.0,105480.0,0.04928497]
[1750743981760,1.01005503,105490.0,105480.0,0.04928497]
[1750743982492,0.79555418,105490.0,105480.0,0.08178497]
[1750743982679,0.99531418,105490.0,105480.0,0.08178497]
[1750743983126,0.97754322,105490.0,105480.0,0.08178497]
[1750743983351,0.99532629,105490.0,105480.0,0.08178497]
[1750743983568,0.79556629,105490.0,105480.0,0.08178497]
[1750743983807,0.83744629,105490.0,105480.0,0.08178497]
[1750743985982,0.81966322,105490.0,105480.0,0.08178497]
[1750743986153,0.83744696,105490.0,105480.0,0.08178497]
[1750743986748,0.83744696,105490.0,105480.0,0.28087475]
[1750743987561,0.77778322,105490.0,105480.0,0.44533656]
[1750743987763,0.49523725,105490.0,105480.0,0.44533656]
[1750743991180,0.00313725,105490.0,105480.0,0.44533656]
[1750743994826,0.00313725,105490.0,105480.0,0.45467146]
[1750743995390,0.00313725,105490.0,105480.0,0.44533656]
[1750743996590,0.00313725,105490.0,105480.0,0.78533656]
[1750743999037,0.00313725,105490.0,105480.0,1.07734657]
[1750744000061,0.00113725,105490.0,105480.0,1.07734657]
[1750744000416,0.00013725,105490.0,105480.0,1.07734657]
[1750744000618,0.00013725,105490.0,105480.0,1.08234657]
[1750744000808,0.00013725,105490.0,105480.0,1.08534657]
[1750744001238,0.00013725,105490.0,105480.0,1.07734657]
[1750744001658,0.00013725,105490.0,105480.0,1.08234657]
[1750744001864,0.00013725,105490.0,105480.0,1.08934657]
[1750744003561,0.00013725,105490.0,105480.0,1.24706657]
[1750744004283,0.00013725,105490.0,105480.0,0.9645206]
[1750744004513,0.00013725,105490.0,105480.0,0.8068006]
[1750744004723,0.00013725,105490.0,105480.0,0.9644806]
[1750744005205,0.00013725,105490.0,105480.0,1.24702657]
[1750744007054,0.00013725,105490.0,105480.0,1.23756253]
[1750744007515,0.00013725,105490.0,105480.0,1.07988253]
[1750744007733,0.00013725,105490.0,105480.0,1.23756253]
[1750744008393,0.00013725,105490.0,105480.0,1.07988253]
[1750744008609,0.00013725,105490.0,105480.0,1.23756253]
[1750744008836,0.00013725,105490.0,105480.0,0.95501656]
[1750744009083,0.00013725,105490.0,105480.0,1.23756253]
[1750744009523,0.00013725,105490.0,105480.0,1.26605653]
[1750744009750,0.00013725,105490.0,105480.0,1.27548402]
[1750744010429,0.00013725,105490.0,105480.0,1.27538408]
[1750744010633,0.00013725,105490.0,105480.0,0.98341062]
[1750744010845,0.00013725,105490.0,105480.0,0.98337062]
[1750744011466,0.00013725,105490.0,105480.0,0.82573062]
[1750744011633,0.00013725,105490.0,105480.0,0.98337062]
[1750744012447,0.00013725,105490.0,105480.0,0.82573062]
[1750744012872,0.00013725,105490.0,105480.0,0.98337062]
[1750744013849,0.00013725,105490.0,105480.0,0.82573062]
[1750744014049,0.00013725,105490.0,105480.0,0.98337062]
[1750744014269,0.00013725,105490.0,105480.0,1.10827659]
[1750744014482,0.00013725,105490.0,105480.0,1.26591659]
[1750744015885,0.00013725,105490.0,105480.0,1.54846256]
[1750744016089,0.00013725,105490.0,105480.0,1.62365205]
[1750744017483,0.00013725,105490.0,105480.0,1.05856011]
[1750744017690,0.00013725,105490.0,105480.0,1.62365205]
[1750744018396,0.00013725,105490.0,105480.0,1.34110608]
[1750744018804,0.00013725,105490.0,105480.0,1.62365205]
[1750744020624,0.00013725,105490.0,105480.0,1.6381929]
[1750744020952,0.00013725,105490.0,105480.0,1.07310096]
[1750744021159,0.00013725,105490.0,105480.0,1.6381929]
[1750744022130,0.00013725,105490.0,105480.0,1.56300341]
[1750744023321,0.00013725,105490.0,105480.0,1.65699027]
[1750744023739,0.00013725,105490.0,105480.0,1.75692027]
[1750744023944,0.00013725,105490.0,105480.0,1.65699027]
[1750744029997,0.00013725,105490.0,105480.0,1.70699027]
[1750744030544,0.00013725,105490.0,105480.0,1.72598027]
[1750744030752,0.00013725,105490.0,105480.0,1.77598027]
[1750744030892,3.148e-05,105490.0,105480.0,1.68199341]
[1750744031092,5e-05,105500.0,105490.0,0.43701906]
[1750744031297,5e-05,105500.0,105490.0,1.23905488]
[1750744031512,5e-05,105500.0,105490.0,1.62905488]
[1750744031717,5e-05,105500.0,105490.0,1.58522689]
[1750744031910,5e-05,105500.0,105490.0,1.88231371]
[1750744032305,5e-05,105500.0,105490.0,1.97608335]
[1750744032496,5e-05,105500.0,105490.0,1.88231371]
[1750744032709,0.07581085,105530.0,105490.0,1.88231371]
[1750744032710,0.00015,105530.0,105520.0,0.7222979]
[1750744032909,0.00023736,105530.0,105520.0,1.37470003]
[1750744033367,0.00023736,105530.0,105520.0,1.40318003]
[1750744034923,0.00023736,105530.0,105520.0,1.4316231]
[1750744035344,0.00023736,105530.0,105520.0,1.3376388]
[1750744035618,0.0001,105540.0,105530.0,0.70318724]
[1750744035832,0.0001,105540.0,105530.0,1.23879507]
[1750744036040,0.0001,105540.0,105530.0,1.31378937]
[1750744036196,0.0001,105540.0,105530.0,1.23879507]
[1750744036820,0.0001,105540.0,105530.0,0.87650825]
[1750744037012,0.0001,105540.0,105530.0,0.91420825]
[1750744037823,0.0001,105540.0,105530.0,0.92120825]
[1750744038606,0.0001,105540.0,105530.0,1.20375422]
[1750744038807,0.0001,105540.0,105530.0,0.92120825]
[1750744040546,0.0001,105540.0,105530.0,0.76364825]
[1750744040749,0.0001,105540.0,105530.0,0.92120825]
[1750744040932,0.0001,105540.0,105530.0,0.93620825]
[1750744041930,0.0001,105540.0,105530.0,1.21875422]
[1750744042310,0.0001,105540.0,105530.0,1.23525422]
[1750744043879,0.0001,105540.0,105530.0,1.18605422]
[1750744044088,0.0001,105540.0,105530.0,1.23525422]
[1750744045528,0.0001,105540.0,105530.0,0.97169825]
[1750744045949,0.0001,105540.0,105530.0,0.91947825]
[1750744046149,0.0001,105540.0,105530.0,0.96867825]
[1750744046555,0.0001,105540.0,105530.0,0.91947825]
[1750744046998,0.0001,105540.0,105530.0,0.97832922]
[1750744048500,0.28264597,105540.0,105530.0,0.96867825]
[1750744048714,0.31394597,105540.0,105530.0,0.40292834]
[1750744048888,0.31394597,105540.0,105530.0,0.57020368]
[1750744049125,0.31394597,105540.0,105530.0,0.61940368]
[1750744049368,0.31394597,105540.0,105530.0,0.44265309]
[1750744049369,0.59649194,105540.0,105530.0,0.44265309]
[1750744049604,0.0314,105540.0,105530.0,0.54176422]
[1750744049819,0.31394597,105540.0,105530.0,0.60043956]
[1750744050928,0.0314,105540.0,105530.0,0.60043956]
[1750744051185,0.0314,105540.0,105530.0,0.59643956]
[1750744052522,0.0314,105540.0,105530.0,0.64643956]
[1750744052933,0.0314,105540.0,105530.0,0.63943956]
[1750744053141,0.0314,105540.0,105530.0,0.48159956]
[1750744053356,0.31394597,105540.0,105530.0,0.64035956]
[1750744057400,0.31394597,105540.0,105530.0,0.63088431]
[1750744057604,0.31394597,105540.0,105530.0,0.64035965]
[1750744058182,0.31394597,105540.0,105530.0,0.64035974]
[1750744058650,0.31394597,105540.0,105530.0,0.64035965]
[1750744058855,0.31394597,105540.0,105530.0,0.62140879]
[1750744059042,0.31394597,105540.0,105530.0,0.63088422]
[1750744059167,0.31399597,105540.0,105530.0,0.63088422]
[1750744059639,0.31399597,105540.0,105530.0,0.64035974]
[1750744060051,0.31399597,105540.0,105530.0,0.66884592]
[1750744060480,0.31399597,105540.0,105530.0,0.66884547]
[1750744060687,0.31399597,105540.0,105530.0,0.64989452]
[1750744060896,0.31399597,105540.0,105530.0,0.65937004]
[1750744061112,0.31399597,105540.0,105530.0,0.66884502]
[1750744062801,0.31399597,105540.0,105530.0,0.65936968]
[1750744063157,0.31399597,105540.0,105530.0,0.66884502]
[1750744063571,0.31399597,105540.0,105530.0,0.65936968]
[1750744063777,0.31399597,105540.0,105530.0,0.66884502]
[1750744064122,0.31399597,105540.0,105530.0,0.64041873]
[1750744064717,0.31399597,105540.0,105530.0,0.64989425]
[1750744064904,0.31399597,105540.0,105530.0,0.65936968]
[1750744065268,0.31399597,105540.0,105530.0,0.66884502]
[1750744065856,0.03145,105540.0,105530.0,0.66884502]
[1750744066073,0.31399597,105540.0,105530.0,0.66884502]
[1750744066276,0.31399597,105540.0,105530.0,0.65936968]
[1750744066984,0.03145,105540.0,105530.0,0.66884502]
[1750744067113,0.31399597,105540.0,105530.0,0.66884502]
[1750744067332,0.31399597,105540.0,105530.0,0.65936968]
[1750744067535,0.03145,105540.0,105530.0,0.66884502]
[1750744067762,0.31399597,105540.0,105530.0,0.65936968]
[1750744067988,0.31399597,105540.0,105530.0,0.64989425]
[1750744068330,0.31399597,105540.0,105530.0,0.66884502]
[1750744068858,0.31399597,105540.0,105530.0,0.65936968]
[1750744069053,0.31399597,105540.0,105530.0,0.43194786]
[1750744069263,0.59654194,105540.0,105530.0,0.35406186]
[1750744069707,0.03145,105540.0,105530.0,0.43522142]
[1750744069858,0.04187,105540.0,105530.0,0.46364852]
[1750744070063,0.04187,105540.0,105530.0,0.47312386]
[1750744070323,0.32441597,105540.0,105530.0,0.40497309]
[1750744070538,0.07437,105540.0,105530.0,0.46364852]
[1750744070743,0.35691597,105540.0,105530.0,0.47312386]
[1750744071691,0.28269597,105540.0,105530.0,0.47312386]
[1750744072107,0.00015,105540.0,105530.0,0.47312386]
[1750744072321,0.28269597,105540.0,105530.0,0.47312386]
[1750744072937,0.00015,105540.0,105530.0,0.50432386]
[1750744079725,0.28269597,105540.0,105530.0,0.47318039]
[1750744079946,0.0326,105540.0,105530.0,0.50160722]
[1750744080176,0.31514597,105540.0,105530.0,0.50160722]
[1750744080516,0.31514597,105540.0,105530.0,0.65916722]
[1750744081283,0.28254597,105540.0,105530.0,0.65916722]
[1750744081501,0.31414597,105540.0,105530.0,0.65916722]
[1750744082292,0.29774597,105540.0,105530.0,0.65916722]
[1750744082454,0.0152,105540.0,105530.0,0.65916722]
[1750744082660,0.29774597,105540.0,105530.0,0.65916722]
[1750744083314,0.28254597,105540.0,105530.0,0.65916722]
[1750744083722,0.07292,105550.0,105530.0,0.66864239]
[1750744083934,0.28254597,105540.0,105530.0,0.57314053]
[1750744084135,0.28254597,105540.0,105530.0,0.65916722]
[1750744084341,5e-05,105540.0,105530.0,0.65916722]
[1750744084549,0.28259597,105540.0,105530.0,0.65816722]
[1750744084922,5e-05,105540.0,105530.0,0.65816722]
[1750744085134,0.29769597,105540.0,105530.0,0.65816722]
[1750744085536,0.01515,105540.0,105530.0,0.65816722]
[1750744085729,0.29769597,105540.0,105530.0,0.64869188]
[1750744086051,0.29769597,105540.0,105530.0,0.66764265]
[1750744086457,0.29769597,105540.0,105530.0,0.51008265]
[1750744086654,0.31299597,105540.0,105530.0,0.66864265]
[1750744087000,0.01515,105540.0,105530.0,0.66864265]
[1750744087205,5e-05,105540.0,105530.0,0.66864265]
[1750744087431,0.28259597,105540.0,105530.0,0.66864265]
[1750744088137,0.28259597,105540.0,105530.0,0.64021627]
[1750744088367,0.31329597,105540.0,105530.0,0.64969197]
[1750744088593,0.31329597,105540.0,105530.0,0.64969206]
[1750744088837,0.31329597,105540.0,105530.0,0.65916776]
[1750744089062,0.31329597,105540.0,105530.0,0.64969206]
[1750744089269,0.31329597,105540.0,105530.0,0.44122074]
[1750744089490,0.31329597,105540.0,105530.0,0.45069653]
[1750744090147,0.31329597,105540.0,105530.0,0.64969179]
[1750744090477,0.31329597,105540.0,105530.0,0.64021609]
[1750744090681,0.31329597,105540.0,105530.0,0.64969179]
[1750744090887,0.31329597,105540.0,105530.0,0.6591674]
[1750744091302,0.31329597,105540.0,105530.0,0.64969179]
[1750744091484,0.31329597,105540.0,105530.0,0.6591674]
[1750744091694,0.31329597,105540.0,105530.0,0.64969179]
[1750744092085,0.31329597,105540.0,105530.0,0.6591674]
[1750744092298,0.29759597,105540.0,105530.0,0.66864283]
[1750744092541,0.29759597,105540.0,105530.0,0.66864292]
[1750744092760,0.29759597,105540.0,105530.0,0.65916704]
[1750744092966,0.28259597,105540.0,105530.0,0.66864247]
[1750744093190,0.28259597,105540.0,105530.0,0.66864202]
[1750744093389,0.28259597,105540.0,105530.0,0.64969125]
[1750744094024,0.28259597,105540.0,105530.0,0.64021609]
[1750744094232,0.31369597,105540.0,105530.0,0.6496917]
[1750744094432,0.31369597,105540.0,105530.0,0.64021609]
[1750744094652,0.31369597,105540.0,105530.0,0.6496917]
[1750744094855,0.28259597,105540.0,105530.0,0.66864247]
[1750744095035,0.28259597,105540.0,105530.0,0.65916713]
[1750744095283,0.31449597,105540.0,105530.0,0.64021609]
[1750744095496,0.31449597,105540.0,105530.0,0.64969188]
[1750744095714,0.31449597,105540.0,105530.0,0.65916749]
[1750744095926,0.29809597,105540.0,105530.0,0.66864301]
[1750744096145,0.31409597,105540.0,105530.0,0.64969188]
[1750744096325,0.31409597,105540.0,105530.0,0.079483]
[1750744096326,0.61441515,105540.0,105530.0,0.079483]
[1750744096579,0.95441515,105540.0,105530.0,0.051]
[1750744096797,0.97784356,105540.0,105530.0,0.051]
[1750744097653,0.97884356,105540.0,105530.0,0.05]
[1750744097865,0.97882457,105540.0,105530.0,0.05]
[1750744098699,0.97782457,105540.0,105530.0,0.05]
[1750744099147,0.97782308,105540.0,105530.0,0.05]
[1750744100020,0.97982308,105540.0,105530.0,0.05]
[1750744100838,1.17909262,105540.0,105530.0,0.05]
[1750744101287,1.17907619,105540.0,105530.0,0.05]
[1750744103288,0.97979619,105540.0,105530.0,0.05]
[1750744103493,1.17907619,105540.0,105530.0,0.05]
[1750744103709,1.17906221,105540.0,105530.0,0.05]
[1750744104175,0.3713,105530.0,105520.0,0.0492]
[1750744104319,0.67157892,105530.0,105520.0,0.0492]
[1750744105941,0.68199892,105530.0,105520.0,0.0492]
[1750744106773,0.68299892,105530.0,105520.0,0.0492]
[1750744107274,0.35873295,105530.0,105520.0,0.0492]
[1750744107482,0.66526597,105530.0,105520.0,0.0808]
[1750744107917,0.28354597,105530.0,105520.0,0.43479258]
[1750744108118,0.32526597,105530.0,105520.0,0.44426882]
[1750744108943,0.32526597,105530.0,105520.0,0.44426891]
[1750744109147,0.32526597,105530.0,105520.0,0.43479258]
[1750744109567,0.32426597,105530.0,105520.0,0.43479258]
[1750744110526,0.32426597,105530.0,105520.0,0.444269]
[1750744110711,0.32426597,105530.0,105520.0,0.43479258]
[1750744110917,0.32426597,105530.0,105520.0,0.43579258]
[1750744111058,0.32426597,105530.0,105520.0,0.445269]
[1750744111611,0.32426597,105530.0,105520.0,0.602829]
[1750744111929,0.32426597,105530.0,105520.0,0.445269]
[1750744112098,0.32426597,105530.0,105520.0,0.43579258]
[1750744112310,0.32426597,105530.0,105520.0,0.43579267]
[1750744112502,0.32426597,105530.0,105520.0,0.41683938]
[1750744112720,0.32426597,105530.0,105520.0,0.22730186]
[1750744113315,0.32426597,105530.0,105520.0,0.23677873]
[1750744113822,0.32426597,105530.0,105520.0,0.22730186]
[1750744114641,0.32426597,105530.0,105520.0,0.19570186]
[1750744114847,0.32426597,105530.0,105520.0,0.20517873]
[1750744115058,0.32426597,105530.0,105520.0,0.21465551]
[1750744115263,0.32426597,105530.0,105520.0,0.20517873]
[1750744115480,0.32426597,105530.0,105520.0,0.21465551]
[1750744115679,0.32426597,105530.0,105520.0,0.19570186]
[1750744115889,0.32426597,105530.0,105520.0,0.20517873]
[1750744116099,0.32426597,105530.0,105520.0,0.19570186]
[1750744116522,0.32426597,105530.0,105520.0,0.39471625]
[1750744116723,0.32426597,105530.0,105520.0,0.20517873]
[1750744116881,0.32426597,105530.0,105520.0,0.21465551]
[1750744117085,0.04172,105530.0,105520.0,0.21465551]
[1750744117290,0.32426597,105530.0,105520.0,0.23045551]
[1750744117897,0.32426597,105530.0,105520.0,0.43509303]
[1750744118105,0.32426597,105530.0,105520.0,0.44456972]
[1750744118686,0.32426597,105530.0,105520.0,0.43509303]
[1750744119072,0.32426597,105530.0,105520.0,0.44456972]
[1750744119287,0.32426597,105530.0,105520.0,0.45404632]
[1750744119498,0.32426597,105530.0,105520.0,0.46352283]
[1750744119698,0.32426597,105530.0,105520.0,0.45404632]
[1750744120059,0.32426597,105530.0,105520.0,0.43509303]
[1750744120461,0.32426597,105530.0,105520.0,0.24555551]
[1750744120643,0.32426597,105530.0,105520.0,0.22660186]
[1750744120857,0.32426597,105530.0,105520.0,0.23607864]
[1750744121285,0.32426597,105530.0,105520.0,0.19570186]
[1750744121729,0.35586597,105530.0,105520.0,0.0502]
[1750744121935,0.35586597,105530.0,105520.0,0.001]
[1750744122148,0.35586597,105530.0,105520.0,0.0502]
[1750744122149,0.37361325,105530.0,105520.0,0.0502]
[1750744122381,0.37361325,105530.0,105520.0,0.001]
[1750744122583,0.37361325,105530.0,105520.0,0.0502]
[1750744122784,0.37361325,105530.0,105520.0,0.001]
[1750744123022,0.3736186,105530.0,105520.0,0.0502]
[1750744123230,0.3746186,105530.0,105520.0,0.0502]
[1750744123775,0.3746186,105530.0,105520.0,0.0492]
[1750744123993,0.09207263,105530.0,105520.0,0.0492]
[1750744124235,0.3587186,105530.0,105520.0,0.0492]
[1750744124653,0.3587188,105530.0,105520.0,0.0492]
[1750744125071,0.07617283,105530.0,105520.0,0.0492]
[1750744125282,0.3587188,105530.0,105520.0,0.0492]
[1750744125713,0.3430188,105530.0,105520.0,0.0492]
[1750744126628,0.32526597,105530.0,105520.0,0.0492]
[1750744126898,0.3430291,105530.0,105520.0,0.0492]
[1750744128264,0.30130905,105530.0,105520.0,0.24821421]
[1750744128477,0.32526597,105530.0,105520.0,0.44436882]
[1750744129156,0.001,105530.0,105520.0,0.44436882]
[1750744129834,0.001,105530.0,105520.0,0.60188882]
[1750744130060,0.32427597,105540.0,105530.0,0.29884639]
[1750744130286,0.32427597,105540.0,105530.0,0.39434825]
[1750744131340,0.32527597,105540.0,105530.0,0.39434825]
[1750744132004,0.32527597,105540.0,105530.0,0.39434834]
[1750744132427,0.32527597,105540.0,105530.0,0.40382368]
[1750744133497,0.32527597,105540.0,105530.0,0.45382368]
[1750744133836,0.32527597,105540.0,105530.0,0.44434834]
[1750744134693,0.32527597,105540.0,105530.0,0.43487291]
[1750744134907,0.32527597,105540.0,105530.0,0.4253973]
[1750744135118,0.60782194,105540.0,105530.0,0.4253973]
[1750744135322,0.60782194,105540.0,105530.0,0.43487309]
[1750744135457,0.60782194,105540.0,105530.0,0.40317309]
[1750744136069,0.60782194,105540.0,105530.0,0.42212422]
[1750744136269,0.60782194,105540.0,105530.0,0.4126487]
[1750744136570,0.60782194,105540.0,105530.0,0.42212422]
[1750744136882,0.60782194,105540.0,105530.0,0.43742422]
[1750744137098,0.60782194,105540.0,105530.0,0.45372422]
[1750744138284,0.60782194,105540.0,105530.0,0.4442487]
[1750744138490,0.60782194,105540.0,105530.0,0.44424879]
[1750744139206,0.60782194,105540.0,105530.0,0.09550186]
[1750744139408,0.60782194,105540.0,105530.0,0.14470186]
[1750744139627,0.62557422,105540.0,105530.0,0.14470186]
[1750744141195,0.62557504,105540.0,105530.0,0.15417783]
[1750744141423,0.62557504,105540.0,105530.0,0.16365353]
[1750744141647,0.62557504,105540.0,105530.0,0.34369739]
[1750744141873,0.62557504,105540.0,105530.0,0.30397327]
[1750744142101,0.62557504,105540.0,105530.0,0.35317327]
[1750744144179,0.62557504,105540.0,105530.0,0.39394906]
[1750744144401,0.64197504,105540.0,105530.0,0.14470186]
[1750744144605,1.00745261,105540.0,105520.0,0.0992]
[1750744144792,0.28254597,105530.0,105520.0,0.22600186]
[1750744145006,0.30029907,105530.0,105520.0,0.22600186]
[1750744145975,0.30029907,105530.0,105520.0,0.23547873]
[1750744146190,0.0177531,105530.0,105520.0,0.43449303]
[1750744146413,0.32422597,105530.0,105520.0,0.43449303]
[1750744146619,0.05943475,105530.0,105520.0,0.23547873]
[1750744146823,0.04168,105530.0,105520.0,0.24495542]
[1750744147032,0.32422597,105530.0,105520.0,0.44396954]
[1750744147655,0.32422597,105530.0,105520.0,0.44496954]
[1750744147869,0.32422597,105530.0,105520.0,0.43549294]
[1750744148078,0.32422597,105530.0,105520.0,0.44496954]
[1750744148282,0.32422597,105530.0,105520.0,0.43549294]
[1750744148729,0.32422597,105530.0,105520.0,0.44496954]
[1750744148949,0.32422597,105530.0,105520.0,0.43549294]
[1750744149365,0.32422597,105530.0,105520.0,0.44496954]
[1750744149568,0.32422597,105530.0,105520.0,0.45444596]
[1750744150029,0.32422597,105530.0,105520.0,0.44496954]
[1750744150267,0.32422597,105530.0,105520.0,0.45444605]
[1750744150983,0.32422597,105530.0,105520.0,0.46392229]
[1750744151204,0.34005,105540.0,105530.0,0.24819553]
[1750744151414,0.66427597,105540.0,105530.0,0.38497327]
[1750744151663,0.66427597,105540.0,105530.0,0.39444888]
[1750744151911,1.17540857,105540.0,105530.0,0.03298215]
[1750744152136,1.17540857,105540.0,105490.0,0.05]
[1750744152137,0.01454085,105510.0,105490.0,0.05]
[1750744152375,1.02670795,105500.0,105490.0,8.736e-05]
[1750744152595,1.0533467,105500.0,105490.0,8.736e-05]
[1750744153042,1.08219879,105500.0,105490.0,8.736e-05]
[1750744153467,1.0733182,105500.0,105490.0,8.736e-05]
[1750744153903,1.04446611,105500.0,105490.0,8.736e-05]
[1750744154581,1.04441883,105500.0,105490.0,8.736e-05]
[1750744154984,1.07292283,105500.0,105490.0,8.736e-05]
[1750744156027,1.04441883,105500.0,105490.0,8.736e-05]
[1750744156205,1.0539024,105500.0,105490.0,8.736e-05]
[1750744156935,0.0327,105490.0,105480.0,0.0002]
[1750744157141,0.75527194,105490.0,105480.0,0.0002]
[1750744157765,0.78377794,105490.0,105480.0,0.0002]
[1750744157913,0.75527194,105490.0,105480.0,0.0002]
[1750744158921,0.75927194,105490.0,105480.0,0.0002]
[1750744159721,0.7687507,105490.0,105480.0,0.0002]
[1750744159906,0.7972671,105490.0,105480.0,0.0002]
[1750744160119,1.17076592,105490.0,105480.0,0.0002]
[1750744160321,1.17076592,105490.0,105470.0,0.0002]
[1750744160322,1.26261801,105480.0,105470.0,0.0002]
[1750744160533,1.38263519,105480.0,105470.0,0.00033836]
[1750744160688,1.12723013,105480.0,105470.0,0.00033836]
[1750744160895,1.09879079,105480.0,105470.0,0.00033836]
[1750744161910,6.58204768,105480.0,105470.0,0.00033836]
[1750744162135,0.01454085,105460.0,105440.0,0.03318215]
[1750744162278,0.60677194,105450.0,105440.0,0.03364345]
[1750744162500,0.60677194,105450.0,105440.0,0.0006613]
[1750744162707,0.60677194,105450.0,105440.0,0.03364345]
[1750744163171,0.60677194,105450.0,105440.0,0.04994345]
[1750744163587,0.32422597,105450.0,105440.0,0.06514345]
[1750744163797,0.32422597,105450.0,105440.0,0.06714345]
[1750744164007,0.32422597,105450.0,105440.0,0.25682478]
[1750744164212,0.32422597,105450.0,105440.0,0.06714345]
[1750744164433,0.32422597,105450.0,105440.0,0.07662751]
[1750744164650,0.32422597,105450.0,105440.0,0.33527651]
[1750744164876,0.28254597,105450.0,105440.0,0.33527651]
[1750744165133,0.32422597,105450.0,105440.0,0.43077837]
[1750744165328,0.04168,105450.0,105440.0,0.4402618]
[1750744165573,0.28254597,105460.0,105450.0,0.29012948]
[1750744165788,0.34,105470.0,105460.0,0.23062753]
[1750744166004,0.66422597,105470.0,105460.0,0.22114536]
[1750744166214,0.66422597,105470.0,105460.0,0.07396441]
[1750744166428,0.66422597,105470.0,105460.0,0.06448215]
[1750744166901,0.38168,105470.0,105460.0,0.07396441]
[1750744167117,0.66422597,105470.0,105460.0,0.05994651]
[1750744167331,0.66522597,105470.0,105460.0,0.07396441]
[1750744167530,0.38268,105470.0,105460.0,0.08344658]
[1750744167857,0.66522597,105470.0,105460.0,0.07396441]
[1750744168157,0.38268,105470.0,105460.0,0.06448215]
[1750744168371,0.66522597,105470.0,105460.0,0.06448215]
[1750744168582,0.66522597,105470.0,105460.0,0.07396432]
[1750744168830,0.38268,105470.0,105460.0,0.27309176]
[1750744169044,0.66522597,105470.0,105460.0,0.27309176]
[1750744169264,0.66522597,105470.0,105460.0,0.28257375]
[1750744169491,0.38268,105470.0,105460.0,0.27509176]
[1750744169707,0.66522597,105470.0,105460.0,0.27509176]
[1750744170149,0.38268,105470.0,105460.0,0.27509176]
[1750744170358,0.66522597,105470.0,105460.0,0.27509176]
[1750744170573,0.38268,105470.0,105460.0,0.06648215]
[1750744170761,0.66522597,105470.0,105460.0,0.06648215]
[1750744171238,0.38268,105470.0,105460.0,0.06648215]
[1750744171456,0.66522597,105470.0,105460.0,0.06648215]
[1750744173218,0.66522597,105470.0,105460.0,0.03498215]
[1750744173851,0.66522597,105470.0,105460.0,0.05038215]
[1750744174126,0.66522597,105470.0,105460.0,0.24950968]
[1750744174370,0.66522597,105470.0,105460.0,0.27549176]
[1750744174611,0.66522597,105470.0,105460.0,0.26600968]
[1750744174791,0.66522597,105470.0,105460.0,0.27549176]
[1750744175023,0.66522597,105470.0,105460.0,0.06688215]
[1750744175250,0.66522597,105470.0,105460.0,0.07636432]
[1750744175496,0.66522597,105470.0,105460.0,0.07636441]
[1750744175729,0.66522597,105470.0,105460.0,0.08584658]
[1750744176174,0.66522597,105470.0,105460.0,0.28497393]
[1750744176445,0.66522597,105470.0,105460.0,0.07636441]
[1750744176681,0.66522597,105470.0,105460.0,0.06688215]
[1750744176903,0.66522597,105470.0,105460.0,0.07636441]
[1750744177118,0.66522597,105470.0,105460.0,0.06688215]
[1750744177577,0.66522597,105470.0,105460.0,0.07636441]
[1750744178748,0.66522597,105470.0,105460.0,0.08584658]
[1750744178986,0.66522597,105470.0,105460.0,0.06688215]
[1750744179419,0.68289104,105470.0,105460.0,0.06688215]
[1750744179907,0.68289104,105470.0,105460.0,0.07636432]
[1750744180130,0.68289104,105470.0,105460.0,0.26600968]
[1750744180588,0.68289104,105470.0,105460.0,0.27549176]
[1750744181449,0.68289104,105470.0,105460.0,0.28497375]
[1750744182153,0.68289104,105470.0,105460.0,0.06688215]
[1750744182332,0.68289104,105470.0,105460.0,0.07636441]
[1750744182747,0.68289104,105470.0,105460.0,0.08584658]
[1750744183337,0.68289104,105470.0,105460.0,0.09532866]
[1750744183595,0.68289104,105470.0,105460.0,0.07636441]
[1750744183843,0.68297926,105470.0,105460.0,0.07636441]
[1750744184088,0.68297926,105470.0,105460.0,0.27549194]
[1750744184296,0.64129926,105470.0,105460.0,0.29445583]
[1750744184502,0.64129926,105470.0,105460.0,0.44943932]
[1750744184503,0.06043329,105470.0,105460.0,0.44943932]
[1750744184973,0.06043329,105470.0,105460.0,0.47794332]
[1750744185442,0.06043329,105470.0,105460.0,0.44496117]